Workbook

Sheet 汇总表
A1: 附件：
A2: 2023年汝阳县公开招教进入体检人员名单（高中教师0101-0106）
A3: 序号 | B3: 姓名 | C3: 性别 | D3: 报考岗位 | E3: 职位代码 | F3: 考号 | G3: 笔试成绩 | H3: 面试成绩 | I3: 笔试成绩×50%+面试成绩×50%=总成绩 | J3: 总排名 | K3: 备注
A4: 1 | B4: 王静艺 | C4: 女 | D4: 高中教师（汝阳一高） | E4: 0101-物理 | F4: 23101010109 | G4: 58.65 | H4: 92.54 | I4: =G4*0.5+H4*0.5 -> 75.60 | J4: 1 | K4: 进入体检
A5: 2 | B5: 苏煜翔 | C5: 男 | D5: 高中教师（汝阳一高） | E5: 0101-物理 | F5: 23101010104 | G5: 66.31 | H5: 82.90 | I5: 74.61 | J5: 2 | K5: 进入体检
A6: 3 | B6: 张欢欢 | C6: 男 | D6: 高中教师（汝阳一高） | E6: 0101-物理 | F6: 23101010111 | G6: 52.49 | H6: 90.60 | I6: 71.55 | J6: 3 | K6: 进入体检
A7: 4 | B7: 李千王 | C7: 男 | D7: 高中教师（汝阳一高） | E7: 0101-物理 | F7: 23101010110 | G7: 53.47 | H7: 88.34 | I7: 70.91 | J7: 4 | K7: 进入体检
A8: 5 | B8: 李帅豪 | C8: 男 | D8: 高中教师（汝阳一高） | E8: 0101-物理 | F8: 23101010108 | G8: 47.16 | H8: 88.54 | I8: 67.85 | J8: 5 | K8: 进入体检
A9: 6 | B9: 郭雅静 | C9: 女 | D9: 高中教师（汝阳一高） | E9: 0102-化学 | F9: 23101020205 | G9: 76.21 | H9: 93.80 | I9: 85.01 | J9: 1 | K9: 进入体检
A10: 7 | B10: 李艳培 | C10: 女 | D10: 高中教师（汝阳一高） | E10: 0103-生物 | F10: 23101030214 | G10: 76.98 | H10: 93.60 | I10: 85.29 | J10: 1 | K10: 进入体检
A11: 8 | B11: 肖梅洁 | C11: 女 | D11: 高中教师（汝阳一高） | E11: 0103-生物 | F11: 23101030211 | G11: 71.02 | H11: 91.88 | I11: 81.45 | J11: 2 | K11: 进入体检
A12: 9 | B12: 王岩龙 | C12: 男 | D12: 高中教师（汝阳一高） | E12: 0103-生物 | F12: 23101030228 | G12: 73.86 | H12: 88.36 | I12: 81.11 | J12: 3 | K12: 进入体检
A13: 10 | B13: 孔淑慧 | C13: 女 | D13: 高中教师（汝阳一高） | E13: 0103-生物 | F13: 23101030224 | G13: 68.75 | H13: 92.40 | I13: 80.58 | J13: 4 | K13: 进入体检
A14: 11 | B14: 关雅妮 | C14: 女 | D14: 高中教师（汝阳一高） | E14: 0103-生物 | F14: 23101030307 | G14: 67.98 | H14: 89.20 | I14: 78.59 | J14: 5 | K14: 进入体检
A15: 12 | B15: 武贝贝 | C15: 女 | D15: 高中教师（汝阳一高） | E15: 0104-政治 | F15: 23101040512 | G15: 78.55 | H15: 93.40 | I15: 85.98 | J15: 1 | K15: 进入体检
A16: 13 | B16: 杨琳琳 | C16: 女 | D16: 高中教师（汝阳一高） | E16: 0104-政治 | F16: 23101040516 | G16: 75.91 | H16: 87.10 | I16: 81.51 | J16: 2 | K16: 进入体检
A17: 14 | B17: 张静伊 | C17: 女 | D17: 高中教师（汝阳一高） | E17: 0104-政治 | F17: 23101040504 | G17: 75.44 | H17: 87.52 | I17: 81.48 | J17: 3 | K17: 进入体检
A18: 15 | B18: 申一哲 | C18: 男 | D18: 高中教师（汝阳一高） | E18: 0105-体育 | F18: 23101050601 | G18: 76.46 | H18: 90.50 | I18: 83.48 | J18: 1 | K18: 进入体检
A19: 16 | B19: 石家林 | C19: 男 | D19: 高中教师（汝阳一高） | E19: 0105-体育 | F19: 23101050629 | G19: 76.89 | H19: 82.50 | I19: 79.70 | J19: 2 | K19: 进入体检
A20: 17 | B20: 耿势洋 | C20: 男 | D20: 高中教师（汝阳一高） | E20: 0106-信息技术 | F20: 23101060804 | G20: 72.31 | H20: 89.50 | I20: 80.91 | J20: 1 | K20: 进入体检
A21: 18 | B21: 贺亚迎 | C21: 女 | D21: 高中教师（汝阳一高） | E21: 0106-信息技术 | F21: 23101060720 | G21: 70.53 | H21: 86.80 | I21: 78.67 | J21: 2 | K21: 进入体检
A23: 2023年汝阳县公开招教进入体检人员名单（特殊教育教师0201）
A24: 序号 | B24: 姓名 | C24: 性别 | D24: 报考岗位 | E24: 职位代码 | F24: 考号 | G24: 笔试成绩 | H24: 面试成绩 | I24: 笔试成绩×50%+面试成绩×50%=总成绩 | J24: 总排名 | K24: 备注
A25: 1 | B25: 杨淑怡 | C25: 女 | D25: 特殊教育教师 | E25: 0201-特殊教育 相关专业 | F25: 23102010905 | G25: 70.15 | H25: 92.36 | I25: =G25*0.5+H25*0.5 -> 81.26 | J25: 1 | K25: 进入体检
A26: 2 | B26: 马瑞隆 | C26: 男 | D26: 特殊教育教师 | E26: 0201-特殊教育 相关专业 | F26: 23102010828 | G26: 63.50 | H26: 95.84 | I26: 79.67 | J26: 2 | K26: 进入体检
A27: 3 | B27: 刘毓蕊 | C27: 女 | D27: 特殊教育教师 | E27: 0201-特殊教育 相关专业 | F27: 23102010816 | G27: 65.45 | H27: 90.90 | I27: 78.18 | J27: 3 | K27: 进入体检
A28: 4 | B28: 罗惠琳 | C28: 女 | D28: 特殊教育教师 | E28: 0201-特殊教育 相关专业 | F28: 23102010903 | G28: 65.25 | H28: 88.32 | I28: 76.79 | J28: 4 | K28: 进入体检
A29: 5 | B29: 冯盼盼 | C29: 女 | D29: 特殊教育教师 | E29: 0201-特殊教育 相关专业 | F29: 23102010808 | G29: 63.11 | H29: 89.30 | I29: 76.21 | J29: 5 | K29: 进入体检
A31: 2023年汝阳县公开招教进入体检人员名单（局属幼儿园教师0301）
A32: 序号 | B32: 姓名 | C32: 性别 | D32: 报考岗位 | E32: 职位代码 | F32: 考号 | G32: 笔试成绩 | H32: 面试成绩 | I32: 笔试成绩×50%+面试成绩×50%=总成绩 | J32: 总排名 | K32: 备注
A33: 1 | B33: 李金晓 | C33: 女 | D33: 局属幼儿园教师 | E33: 0301-学前教育 | F33: 23103011213 | G33: 75.91 | H33: 93.40 | I33: =G33*0.5+H33*0.5 -> 84.66 | J33: 1 | K33: 进入体检
A34: 2 | B34: 谢孟月 | C34: 女 | D34: 局属幼儿园教师 | E34: 0301-学前教育 | F34: 23103011024 | G34: 70.58 | H34: 92.88 | I34: 81.73 | J34: 2 | K34: 进入体检
A35: 3 | B35: 李明月 | C35: 女 | D35: 局属幼儿园教师 | E35: 0301-学前教育 | F35: 23103011016 | G35: 74.72 | H35: 88.40 | I35: 81.56 | J35: 3 | K35: 进入体检
A36: 4 | B36: 余淼淼 | C36: 女 | D36: 局属幼儿园教师 | E36: 0301-学前教育 | F36: 23103011427 | G36: 71.21 | H36: 89.20 | I36: 80.21 | J36: 4 | K36: 进入体检
A37: 5 | B37: 翟亚欢 | C37: 女 | D37: 局属幼儿园教师 | E37: 0301-学前教育 | F37: 23103010923 | G37: 72.30 | H37: 87.40 | I37: 79.85 | J37: 5 | K37: 进入体检
A38: 6 | B38: 张冰倩 | C38: 女 | D38: 局属幼儿园教师 | E38: 0301-学前教育 | F38: 23103011106 | G38: 69.48 | H38: 90.20 | I38: 79.84 | J38: 6 | K38: 进入体检
A39: 7 | B39: 董萍 | C39: 女 | D39: 局属幼儿园教师 | E39: 0301-学前教育 | F39: 23103011305 | G39: 66.98 | H39: 92.40 | I39: 79.69 | J39: 7 | K39: 进入体检
A40: 8 | B40: 尤玉新 | C40: 女 | D40: 局属幼儿园教师 | E40: 0301-学前教育 | F40: 23103011010 | G40: 67.75 | H40: 91.60 | I40: 79.68 | J40: 8 | K40: 进入体检
A41: 9 | B41: 王旭旭 | C41: 女 | D41: 局属幼儿园教师 | E41: 0301-学前教育 | F41: 23103011019 | G41: 71.03 | H41: 87.80 | I41: 79.42 | J41: 9 | K41: 进入体检
A42: 10 | B42: 李艺雯 | C42: 女 | D42: 局属幼儿园教师 | E42: 0301-学前教育 | F42: 23103011220 | G42: 71.66 | H42: 86.20 | I42: 78.93 | J42: 10 | K42: 进入体检
A43: 11 | B43: 杨一帆 | C43: 女 | D43: 局属幼儿园教师 | E43: 0301-学前教育 | F43: 23103011515 | G43: 69.71 | H43: 87.80 | I43: 78.76 | J43: 11 | K43: 进入体检
A44: 12 | B44: 郭淑粉 | C44: 女 | D44: 局属幼儿园教师 | E44: 0301-学前教育 | F44: 23103011203 | G44: 72.36 | H44: 84.60 | I44: 78.48 | J44: 12 | K44: 进入体检
A45: 13 | B45: 万鑫 | C45: 女 | D45: 局属幼儿园教师 | E45: 0301-学前教育 | F45: 23103011217 | G45: 67.44 | H45: 89.14 | I45: 78.29 | J45: 13 | K45: 进入体检
A46: 14 | B46: 王雅楠 | C46: 女 | D46: 局属幼儿园教师 | E46: 0301-学前教育 | F46: 23103011124 | G46: 66.82 | H46: 88.20 | I46: 77.51 | J46: 14 | K46: 进入体检
A47: 15 | B47: 苗晓利 | C47: 女 | D47: 局属幼儿园教师 | E47: 0301-学前教育 | F47: 23103011219 | G47: 70.67 | H47: 84.20 | I47: 77.44 | J47: 15 | K47: 进入体检
A48: 16 | B48: 沈玉莲 | C48: 女 | D48: 局属幼儿园教师 | E48: 0301-学前教育 | F48: 23103011127 | G48: 67.33 | H48: 85.50 | I48: 76.42 | J48: 16 | K48: 进入体检
A50: 2023年汝阳县公开招教进入体检人员名单（乡镇幼儿园教师0401）
A51: 序号 | B51: 姓名 | C51: 性别 | D51: 报考岗位 | E51: 职位代码 | F51: 考号 | G51: 笔试成绩 | H51: 原面试成绩 | I51: 加权后成绩 | J51: 笔试成绩×50%+加权后面试成绩×50%=总成绩 | K51: 总排名 | L51: 备注
A52: 1 | B52: 蔚亚楠 | C52: 女 | D52: 乡镇幼儿园教师 | E52: 0401-学前教育 | F52: 23104011719 | G52: 75.32 | H52: 91.00 | I52: =H52*88.35/87.96 -> 91.40 | J52: =G52*0.5+I52*0.5 -> 83.36 | K52: 1 | L52: 进入体检
A53: 2 | B53: 徐利平 | C53: 女 | D53: 乡镇幼儿园教师 | E53: 0401-学前教育 | F53: 23104011706 | G53: 74.20 | H53: 91.96 | I53: =H53*88.35/88.51 -> 91.79 | J53: 83.00 | K53: 2 | L53: 进入体检
A54: 3 | B54: 李格格 | C54: 女 | D54: 乡镇幼儿园教师 | E54: 0401-学前教育 | F54: 23104012208 | G54: 75.88 | H54: 90.24 | I54: 90.08 | J54: 82.98 | K54: 3 | L54: 进入体检
A55: 4 | B55: 李瑶瑶 | C55: 女 | D55: 乡镇幼儿园教师 | E55: 0401-学前教育 | F55: 23104012321 | G55: 69.27 | H55: 94.60 | I55: 94.43 | J55: 81.85 | K55: 4 | L55: 进入体检
A56: 5 | B56: 刘晨怡 | C56: 女 | D56: 乡镇幼儿园教师 | E56: 0401-学前教育 | F56: 23104012309 | G56: 76.29 | H56: 86.70 | I56: =H56*88.35/87.96 -> 87.08 | J56: 81.69 | K56: 5 | L56: 进入体检
A57: 6 | B57: 贾东冉 | C57: 女 | D57: 乡镇幼儿园教师 | E57: 0401-学前教育 | F57: 23104012110 | G57: 72.89 | H57: 89.68 | I57: =H57*88.35/88.51 -> 89.52 | J57: 81.20 | K57: 6 | L57: 进入体检
A58: 7 | B58: 李泽华 | C58: 男 | D58: 乡镇幼儿园教师 | E58: 0401-学前教育 | F58: 23104011621 | G58: 67.78 | H58: 93.90 | I58: 94.32 | J58: 81.05 | K58: 7 | L58: 进入体检
A59: 8 | B59: 卫慧杰 | C59: 女 | D59: 乡镇幼儿园教师 | E59: 0401-学前教育 | F59: 23104011617 | G59: 74.24 | H59: 87.00 | I59: 87.39 | J59: 80.81 | K59: 8 | L59: 进入体检
A60: 9 | B60: 张珍珍 | C60: 女 | D60: 乡镇幼儿园教师 | E60: 0401-学前教育 | F60: 23104011629 | G60: 69.12 | H60: 92.40 | I60: 92.23 | J60: 80.68 | K60: 9 | L60: 进入体检
A61: 10 | B61: 段梦佳 | C61: 女 | D61: 乡镇幼儿园教师 | E61: 0401-学前教育 | F61: 23104011822 | G61: 67.04 | H61: 94.20 | I61: 94.03 | J61: 80.53 | K61: 10 | L61: 进入体检
A62: 11 | B62: 陈丹丹 | C62: 女 | D62: 乡镇幼儿园教师 | E62: 0401-学前教育 | F62: 23104011607 | G62: 71.86 | H62: 88.60 | I62: =H62*88.35/87.96 -> 88.99 | J62: 80.43 | K62: 11 | L62: 进入体检
A63: 12 | B63: 刘纹君 | C63: 女 | D63: 乡镇幼儿园教师 | E63: 0401-学前教育 | F63: 23104012009 | G63: 68.40 | H63: 92.20 | I63: =H63*88.35/88.51 -> 92.03 | J63: 80.22 | K63: 12 | L63: 进入体检
A64: 13 | B64: 张梦瑶 | C64: 女 | D64: 乡镇幼儿园教师 | E64: 0401-学前教育 | F64: 23104011805 | G64: 72.79 | H64: 87.40 | I64: 87.24 | J64: 80.02 | K64: 13 | L64: 进入体检
A65: 14 | B65: 崔孟孟 | C65: 女 | D65: 乡镇幼儿园教师 | E65: 0401-学前教育 | F65: 23104012209 | G65: 68.74 | H65: 90.60 | I65: 91.00 | J65: 79.87 | K65: 14 | L65: 进入体检
A66: 15 | B66: 马小娟 | C66: 女 | D66: 乡镇幼儿园教师 | E66: 0401-学前教育 | F66: 23104012014 | G66: 68.88 | H66: 89.40 | I66: 89.80 | J66: 79.34 | K66: 15 | L66: 进入体检
A67: 16 | B67: 杨孟霞 | C67: 女 | D67: 乡镇幼儿园教师 | E67: 0401-学前教育 | F67: 23104012013 | G67: 69.43 | H67: 89.40 | I67: 89.24 | J67: 79.33 | K67: 16 | L67: 进入体检
A68: 17 | B68: 杨思云 | C68: 女 | D68: 乡镇幼儿园教师 | E68: 0401-学前教育 | F68: 23104012126 | G68: 71.10 | H68: 87.40 | I68: 87.24 | J68: 79.17 | K68: 17 | L68: 进入体检
A69: 18 | B69: 赵佳慧 | C69: 女 | D69: 乡镇幼儿园教师 | E69: 0401-学前教育 | F69: 23104012315 | G69: 68.65 | H69: 89.84 | I69: 89.68 | J69: 79.16 | K69: 18 | L69: 进入体检
A70: 19 | B70: 焦祎慧 | C70: 女 | D70: 乡镇幼儿园教师 | E70: 0401-学前教育 | F70: 23104011705 | G70: 68.88 | H70: 88.80 | I70: 88.64 | J70: 78.76 | K70: 19 | L70: 进入体检
A71: 20 | B71: 霍梦迪 | C71: 女 | D71: 乡镇幼儿园教师 | E71: 0401-学前教育 | F71: 23104011816 | G71: 69.88 | H71: 87.80 | I71: 87.64 | J71: 78.76 | K71: 19 | L71: 进入体检
A72: 21 | B72: 柴洁镁 | C72: 女 | D72: 乡镇幼儿园教师 | E72: 0401-学前教育 | F72: 23104011901 | G72: 68.27 | H72: 89.28 | I72: 89.12 | J72: 78.69 | K72: 21 | L72: 进入体检
A73: 22 | B73: 李洁洁 | C73: 女 | D73: 乡镇幼儿园教师 | E73: 0401-学前教育 | F73: 23104011920 | G73: 66.93 | H73: 90.20 | I73: 90.04 | J73: 78.48 | K73: 22 | L73: 进入体检
A74: 23 | B74: 杨靓怡 | C74: 女 | D74: 乡镇幼儿园教师 | E74: 0401-学前教育 | F74: 23104012226 | G74: 67.71 | H74: 89.40 | I74: 89.24 | J74: 78.47 | K74: 23 | L74: 进入体检
A75: 24 | B75: 朱雨笑 | C75: 女 | D75: 乡镇幼儿园教师 | E75: 0401-学前教育 | F75: 23104011921 | G75: 69.88 | H75: 86.60 | I75: 86.44 | J75: 78.16 | K75: 24 | L75: 进入体检
A76: 25 | B76: 路明珍 | C76: 女 | D76: 乡镇幼儿园教师 | E76: 0401-学前教育 | F76: 23104011714 | G76: 69.19 | H76: 86.70 | I76: =H76*88.35/87.96 -> 87.08 | J76: 78.14 | K76: 25 | L76: 进入体检
A77: 26 | B77: 杨一帆 | C77: 女 | D77: 乡镇幼儿园教师 | E77: 0401-学前教育 | F77: 23104012211 | G77: 68.43 | H77: 87.40 | I77: =H77*88.35/87.96 -> 87.79 | J77: 78.11 | K77: 26 | L77: 进入体检
A78: 27 | B78: 王鑫炀 | C78: 女 | D78: 乡镇幼儿园教师 | E78: 0401-学前教育 | F78: 23104011520 | G78: 70.21 | H78: 86.00 | I78: =H78*88.35/88.51 -> 85.84 | J78: 78.03 | K78: 27 | L78: 进入体检
A79: 28 | B79: 王绍冰 | C79: 女 | D79: 乡镇幼儿园教师 | E79: 0401-学前教育 | F79: 23104012324 | G79: 68.75 | H79: 87.40 | I79: 87.24 | J79: 78.00 | K79: 28 | L79: 进入体检
A80: 29 | B80: 徐妞 | C80: 女 | D80: 乡镇幼儿园教师 | E80: 0401-学前教育 | F80: 23104011824 | G80: 70.55 | H80: 85.30 | I80: 85.15 | J80: 77.85 | K80: 29 | L80: 进入体检
A81: 30 | B81: 柴丹坭 | C81: 女 | D81: 乡镇幼儿园教师 | E81: 401-学前教育 | F81: 23104012221 | G81: 64,20 | H81: 91.22 | I81: 91.06 | J81: 77.63 | K81: 30 | L81: 进入体检
A82: 31 | B82: 张伊蔓 | C82: 女 | D82: 乡镇幼儿园教师 | E82: 0401-学前教育 | F82: 23104012111 | G82: 65.66 | H82: 89.48 | I82: 89.32 | J82: =G82*0.5+I82*0.5 -> 77.49 | K82: 31 | L82: 进入体检
A83: 32 | B83: 孔雨露 | C83: 女 | D83: 乡镇幼儿园教师 | E83: 0401-学前教育 | F83: 23104011612 | G83: 67.31 | H83: 87.80 | I83: 87.64 | J83: 77.48 | K83: 32 | L83: 进入体检
A84: 33 | B84: 胡玉洁 | C84: 女 | D84: 乡镇幼儿园教师 | E84: 0401-学前教育 | F84: 23104011601 | G84: 66.83 | H84: 87.80 | I84: 87.64 | J84: 77.24 | K84: 33 | L84: 进入体检
